bitfinex-derivatives/quotes_ETHF0:USTF0_20260209
["timestamp","ask_amount","ask_price","bid_price","bid_amount"]
[1770658865269,10.87564297,2131.8,2129.8,11.23951606]
[1770658865571,10.87564297,2131.8,2130.2,11.23951606]
[1770658865766,10.8789624,2131.8,2130.2,11.23951606]
[1770658866975,10.8789624,2131.8,2130.4,11.23951606]
[1770658868179,10.8789624,2131.8,2130.5,11.47436606]
[1770658868370,10.8789624,2131.8,2130.5,11.47856369]
[1770658868567,10.8789624,2131.8,2130.5,0.00419763]
[1770658868976,10.3464124,2131.8,2131.5,5.77471]
[1770658869177,10.87564297,2133.0,2130.9,11.47432606]
[1770658869370,10.87564297,2133.0,2131.4,11.23951606]
[1770658869571,10.87564297,2134.0,2132.2,11.23951606]
[1770658870175,10.87564297,2133.8,2132.2,0.00474776]
[1770658870370,10.87564297,2133.4,2132.2,11.24426382]
[1770658870570,10.87564297,2133.4,2132.2,0.00474776]
[1770658870767,10.87564297,2133.4,2132.2,11.24426382]
[1770658871572,10.87564297,2133.4,2132.2,0.00474776]
[1770658871771,10.87564297,2133.1,2130.9,11.23951606]
[1770658871971,10.87564297,2133.1,2130.8,4.07164726]
[1770658871972,10.87564297,2132.6,2131.1,11.23951606]
[1770658872375,8.52469319,2132.6,2131.1,11.23951606]
[1770658872784,8.52469319,2132.6,2131.2,11.23951606]
[1770658873281,10.87564297,2132.4,2131.2,11.24458893]
[1770658873483,10.87564297,2132.4,2131.2,0.00507287]
[1770658873484,10.88039342,2132.4,2131.2,0.00507287]
[1770658874781,10.88039342,2132.4,2130.6,11.23951606]
[1770658874983,10.88039342,2132.4,2130.7,0.01274384]
[1770658875375,8.52944364,2132.4,2129.9,11.36580136]
[1770658875578,9.35967332,2132.1,2130.1,11.13089136]
[1770658875883,9.58100697,2131.9,2130.1,11.13665404]
[1770658876085,9.58100697,2131.6,2130.1,0.00576268]
[1770658876273,9.58100697,2131.6,2130.1,11.13665404]
[1770658876984,9.58100697,2131.6,2130.2,11.13089136]
[1770658877778,9.58100697,2131.6,2130.1,0.00576268]
[1770658878174,9.58100697,2131.6,2130.1,11.13665404]
[1770658878485,7.23005719,2131.6,2130.3,11.13089136]
[1770658878682,7.22210192,2131.4,2130.3,11.13089136]
[1770658879585,7.22210192,2131.4,2129.7,11.07704446]
[1770658880579,0.2348,2131.0,2129.7,0.00095568]
[1770658880774,7.97919812,2130.6,2129.1,11.07704446]
[1770658880976,7.97919812,2130.6,2128.8,11.07704446]
[1770658881376,8.21413812,2129.8,2127.8,11.31219446]
[1770658881583,5.62824834,2129.4,2128.0,11.31217446]
[1770658881782,5.63165435,2129.4,2128.0,11.31217446]
[1770658881980,6.17751429,2129.2,2127.4,11.31223446]
[1770658882490,6.17751429,2128.8,2127.1,11.07704446]
[1770658882985,6.17751429,2128.8,2127.2,0.23522]
[1770658883181,6.17751429,2128.8,2127.1,11.07704446]
[1770658883884,6.16553086,2129.3,2127.2,11.07704446]
[1770658884185,6.16553086,2129.1,2127.2,11.07704446]
[1770658884683,3.81458108,2128.9,2127.2,11.07704446]
[1770658885386,3.81458108,2128.6,2127.0,0.00556222]
[1770658885681,46.58101,2129.2,2127.0,0.00556222]
[1770658885682,4.21691116,2129.1,2127.0,11.08260668]
[1770658885880,4.21691116,2129.0,2127.0,11.08260668]
[1770658886684,4.21691116,2128.8,2127.0,11.08260668]
[1770658887583,36.14943,2129.1,2127.0,16.86945668]
[1770658887584,2.7813925,2129.1,2127.0,16.86945668]
[1770658887884,44.51340547,2129.2,2127.6,11.07704446]
[1770658887885,40.8,2129.2,2127.6,11.07704446]
[1770658888088,40.8,2129.2,2127.8,11.07704446]
[1770658888481,2.7813925,2129.1,2127.8,11.07704446]
[1770658889391,40.8,2129.2,2128.3,11.07704446]
[1770658889585,0.00340601,2129.4,2128.3,11.07704446]
[1770658889985,40.80340601,2129.4,2128.3,11.07704446]
[1770658890193,0.00340601,2129.4,2128.3,11.07704446]
[1770658890593,41.29087942,2129.3,2128.3,11.07704446]
[1770658890890,41.29087942,2129.3,2127.5,0.23517]
[1770658890891,40.8,2129.3,2127.6,11.38723926]
[1770658891082,41.29087942,2129.3,2127.6,11.38723926]
[1770658891281,0.49087942,2129.2,2127.6,11.38723926]
[1770658891686,0.49535006,2129.2,2127.6,11.38723926]
[1770658892688,0.49408809,2129.0,2127.6,11.38723926]
[1770658893199,30.87408809,2128.9,2127.6,11.38723926]
[1770658893493,0.00447064,2129.2,2127.6,11.38723926]
[1770658893792,30.381,2130.0,2128.2,11.2881557]
[1770658893992,0.68904655,2129.9,2128.2,11.2881557]
[1770658894691,40.8,2129.8,2128.2,11.2881557]
[1770658894893,0.68904655,2129.7,2128.2,11.2881557]
[1770658896587,39.13809677,2129.8,2128.2,11.2881557]
[1770658896888,30.381,2129.7,2128.2,11.2881557]
[1770658897399,30.381,2129.6,2128.2,11.2881557]
[1770658897692,40.8,2129.5,2128.2,11.2881557]
[1770658898588,40.8,2129.5,2127.5,11.63267897]
[1770658898793,30.382,2129.4,2127.9,11.63267897]
[1770658899696,28.03105022,2129.4,2127.9,11.63267897]
[1770658901395,0.23498,2129.3,2127.3,11.63267897]
[1770658901589,0.23498,2129.3,2127.5,11.63267897]
[1770658901897,30.384,2129.2,2127.5,11.63267897]
[1770658902099,30.384,2129.2,2127.7,11.63267897]
[1770658902790,28.03305022,2129.2,2127.7,11.63267897]
[1770658903097,40.8,2129.1,2127.7,11.63267897]
[1770658903597,0.23502,2129.0,2127.7,11.63267897]
[1770658904899,0.23502,2129.0,2128.1,0.01274384]
[1770658905100,0.23502,2129.0,2127.7,11.63267897]
[1770658905794,38.68407022,2129.1,2127.7,11.63267897]
[1770658905994,28.03305022,2129.2,2127.7,11.63267897]
[1770658906500,0.23502,2129.0,2127.7,11.63267897]
[1770658906898,0.23504,2128.8,2127.7,11.63267897]
[1770658907803,40.8,2128.9,2127.7,11.63267897]
[1770658908000,30.389,2128.8,2127.7,11.63267897]
[1770658908202,5.78262,2128.6,2127.1,11.63094133]
[1770658908502,0.2351,2128.3,2127.1,11.63094133]
[1770658908700,0.24051045,2128.3,2127.1,11.63094133]
[1770658909001,28.27856067,2128.8,2127.1,11.63094133]
[1770658909602,0.2351,2128.3,2127.1,11.63094133]
[1770658909805,0.23504,2128.8,2127.7,11.63094133]
[1770658910806,0.23918183,2128.8,2127.7,11.63094133]
[1770658911803,28.27923205,2129.0,2127.7,11.63094133]
[1770658912006,41.03504,2128.8,2127.7,11.63094133]
[1770658912699,0.23509,2128.4,2127.7,11.63094133]
[1770658913000,0.24009553,2128.4,2127.7,11.63094133]
[1770658913597,0.00500553,2128.4,2127.7,11.63094133]
[1770658914800,0.00500553,2128.4,2127.1,2.67136915]
[1770658915101,0.23503,2128.9,2127.2,11.63094133]
[1770658916004,0.23505,2128.7,2127.2,11.63094133]
[1770658916200,30.393,2128.6,2127.4,11.63094133]
[1770658918002,28.04205022,2128.6,2127.4,11.63094133]
[1770658918809,0.23507,2128.5,2127.4,11.63094133]
[1770658920305,0.00542038,2128.9,2128.1,11.64368517]
[1770658920610,0.23505,2128.7,2127.6,11.63094133]
[1770658920802,40.8,2128.6,2127.6,11.63094133]
[1770658921109,0.23505,2128.7,2127.6,11.63094133]
[1770658921611,30.395,2128.8,2127.6,11.63094133]
[1770658922016,40.8,2128.7,2127.6,11.63094133]
[1770658922214,0.23506,2128.6,2127.6,11.63094133]
[1770658923400,40.8,2128.7,2127.0,0.00556222]
[1770658923401,0.23516,2127.8,2127.0,0.00556222]
[1770658923605,0.23516,2127.8,2126.5,11.22488646]
[1770658923606,10.94748118,2127.6,2126.5,11.22488646]
[1770658924006,10.71231118,2127.6,2126.5,11.22488646]
[1770658924609,10.71231118,2127.6,2126.5,11.22929841]
[1770658924807,10.71231118,2126.1,2125.4,5.41891057]
[1770658925007,16.49926118,2127.0,2124.6,11.22488646]
[1770658925008,10.71231118,2125.8,2124.6,11.22488646]
[1770658925208,10.71231118,2126.2,2124.6,11.22488646]
[1770658925512,10.71231118,2126.0,2124.6,11.22488646]
[1770658925899,0.00335737,2126.0,2124.6,11.22842806]
[1770658926100,10.71566855,2126.0,2124.6,11.22842806]
[1770658926507,30.398,2125.9,2124.6,11.22842806]
[1770658926708,30.4,2125.9,2124.6,11.22842806]
[1770658926900,41.11231118,2125.9,2124.6,11.22842806]
[1770658927099,10.71231118,2125.8,2124.6,11.22842806]
[1770658927511,30.4,2125.7,2124.6,11.22842806]
[1770658927705,10.71231118,2125.8,2124.6,11.22842806]
[1770658927906,30.404,2125.7,2124.6,11.22842806]
[1770658928409,10.71231118,2125.6,2124.6,11.22842806]
[1770658928610,10.71231118,2125.9,2124.6,11.22842806]
[1770658928811,30.407,2125.8,2124.6,11.22842806]
[1770658929013,41.11931118,2125.8,2124.6,11.22842806]
[1770658929910,10.71231118,2125.7,2124.6,11.22842806]
[1770658930103,8.3613614,2125.7,2124.6,11.22842806]
[1770658930309,10.71566855,2126.0,2124.6,11.22842806]
[1770658931213,41.12866855,2126.0,2124.6,11.22842806]
[1770658931417,30.41635737,2126.0,2124.6,11.22842806]
[1770658932016,10.71231118,2125.9,2124.6,11.22842806]
[1770658932918,0.00335737,2126.0,2124.8,11.22488646]
[1770658933108,38.78171877,2126.6,2125.0,11.22488646]
[1770658933306,40.8,2126.5,2125.0,11.22488646]
[1770658933517,10.71231118,2126.4,2125.0,11.22488646]
[1770658934225,10.71782286,2126.4,2125.0,11.22488646]
[1770658935115,10.71231118,2126.2,2125.0,11.22488646]
[1770658935614,30.419,2126.1,2125.0,11.22488646]
[1770658936014,40.99924866,2126.1,2125.0,11.22488646]
[1770658936215,0.00551168,2126.4,2125.0,11.22488646]
[1770658936412,41.00576034,2126.4,2125.0,11.22488646]
[1770658936818,10.58024866,2126.3,2125.0,11.22488646]
[1770658938217,0.00551168,2126.4,2125.2,11.42019211]
[1770658938421,30.42751168,2126.4,2125.2,11.42019211]
[1770658938623,0.00551168,2126.4,2125.4,11.42019211]
[1770658939320,22.628,2126.7,2125.4,11.42019211]
[1770658939820,33.77060493,2126.7,2125.4,11.42019211]
[1770658940017,11.14260493,2126.6,2125.4,11.42019211]
[1770658940217,11.14778015,2126.6,2125.4,11.42019211]
[1770658940815,0.00517522,2126.6,2125.4,11.42019211]
[1770658941118,11.14260493,2126.5,2125.4,11.42019211]
[1770658941321,0.00517522,2126.6,2125.6,11.39001265]
[1770658942010,11.14778015,2126.6,2125.6,11.39001265]
[1770658942215,8.79683037,2126.6,2125.6,11.39001265]
[1770658943219,8.8009345,2126.6,2125.6,11.39001265]
[1770658944414,30.42710413,2126.6,2125.6,11.39001265]
[1770658944920,30.42710413,2126.6,2125.7,0.23538]
[1770658945122,0.00410413,2126.6,2125.8,11.39001265]
[1770658945415,28.07615435,2126.8,2125.8,11.39001265]
[1770658945623,40.8,2126.8,2125.8,11.39001265]
[1770658946015,30.423,2127.0,2125.8,11.39001265]
[1770658946211,30.423,2127.0,2126.0,11.39001265]
[1770658946410,30.423,2127.0,2126.2,11.39001265]
[1770658946411,0.0053151,2127.0,2126.2,11.39001265]
[1770658946621,0.0053151,2127.0,2126.2,11.39410999]
[1770658947019,10.90500308,2127.0,2126.2,11.39410999]
[1770658947210,0.0053151,2127.0,2126.2,11.39410999]
[1770658947411,10.89968798,2126.9,2125.4,11.39001265]
[1770658948317,8.5487382,2126.9,2125.4,11.39538915]
[1770658948719,8.39213884,2126.7,2125.4,11.39538915]
[1770658948917,8.39213884,2126.5,2125.4,0.0053765]
[1770658949121,8.39213884,2126.3,2125.4,0.0053765]
[1770658951420,6.04118906,2126.3,2125.4,0.0053765]
[1770658951928,5.59432228,2126.1,2125.2,11.39001265]
[1770658952129,5.82966228,2126.1,2124.7,11.39001265]
[1770658952929,5.82966228,2126.1,2124.7,11.39558102]
[1770658953129,5.59432228,2125.7,2124.7,11.39558102]
[1770658953324,5.59432228,2126.0,2124.7,11.39558102]
[1770658954324,3.2433725,2126.0,2124.7,11.39558102]
[1770658957126,41.03533,2126.2,2124.7,11.39558102]
[1770658957332,40.8,2126.2,2125.1,11.39001265]
[1770658957531,33.64228615,2126.4,2125.1,11.39001265]
[1770658958432,43.93755282,2126.3,2125.1,11.39001265]
[1770658959540,30.421,2126.4,2125.3,11.39001265]
[1770658959731,30.421,2126.4,2125.5,11.39001265]
[1770658960634,28.07005022,2126.4,2125.5,11.39001265]
[1770658961027,31.10148251,2126.4,2125.5,11.39001265]
[1770658961232,28.07005022,2126.4,2125.5,11.39001265]
[1770658963541,25.71910044,2126.4,2125.5,11.39001265]
[1770658963736,2.78612395,2126.3,2125.5,11.39001265]
[1770658965237,2.92552404,2126.5,2125.5,11.39001265]
[1770658965540,30.428,2126.3,2125.5,11.39001265]
[1770658966637,28.07705022,2126.3,2125.5,11.39001265]
[1770658967243,30.88040958,2126.3,2125.5,11.39001265]
[1770658967444,2.80335936,2126.2,2125.5,11.39001265]
[1770658967644,2.80335936,2126.2,2125.3,10.48814386]
[1770658967845,3.31674486,2126.0,2124.8,10.98814386]
[1770658968040,3.31674486,2125.9,2124.7,10.99371223]
[1770658968241,3.31674486,2125.8,2124.7,10.99371223]
[1770658968435,3.31674486,2125.6,2124.7,10.99371223]
[1770658969141,3.31674486,2125.4,2124.7,0.00556837]
[1770658969341,0.00397197,2125.4,2124.7,10.99371223]
[1770658969539,28.08102219,2125.5,2124.7,10.99371223]
[1770658970742,28.08589431,2125.5,2124.7,10.99371223]
[1770658972646,0.00487212,2125.5,2124.7,10.99371223]
[1770658972847,30.431,2126.1,2124.7,10.99371223]
[1770658973354,3.36559584,2126.2,2124.7,10.99371223]
[1770658973542,3.36559584,2126.2,2124.9,10.98814386]
[1770658973743,6.31286465,2126.1,2124.9,10.98814386]
[1770658973946,40.8,2126.0,2124.9,10.98814386]
[1770658974249,0.00420136,2126.2,2125.1,10.98814386]
[1770658975044,3.39154197,2126.2,2125.1,10.98814386]
[1770658975250,0.00420136,2126.2,2125.1,10.98814386]
[1770658975645,28.08525158,2126.4,2125.1,10.98814386]
[1770658976149,3.3736638,2126.3,2125.1,10.98814386]
[1770658976549,28.08525158,2126.4,2125.1,10.98814386]
[1770658976750,28.08971053,2126.4,2125.1,10.98814386]
[1770658976952,3.3736638,2126.3,2125.1,10.98814386]
[1770658978854,1.02271402,2126.3,2125.1,10.98814386]
[1770658980353,1.02271402,2126.3,2124.7,11.17892044]
[1770658980354,2.92552404,2125.5,2124.7,11.17892044]
[1770658980551,10.64840527,2125.0,2124.1,10.98814386]
[1770658980751,10.64840527,2125.2,2124.1,10.98814386]
[1770658980951,30.431,2124.9,2124.1,10.98814386]
[1770658981149,30.431,2124.8,2124.1,10.98814386]
[1770658981548,41.08499763,2124.8,2124.1,10.99174729]
[1770658981754,8.29745549,2124.7,2123.9,10.98814386]
[1770658981958,11.22297953,2124.7,2123.4,10.98814386]
[1770658982750,11.22297953,2124.7,2123.4,10.99145012]
[1770658982955,8.29745549,2124.7,2123.4,10.99145012]
[1770658983149,0.00559236,2124.8,2123.6,10.98814386]
[1770658983456,30.433,2124.7,2123.6,10.98814386]
[1770658983656,30.433,2124.7,2123.8,10.98814386]
[1770658984763,7.55726174,2124.6,2123.8,10.98814386]
[1770658985254,7.55726174,2124.6,2123.5,10.98814386]
[1770658985756,40.8,2125.1,2123.4,0.00330626]
[1770658985757,41.80727096,2125.9,2124.0,5.79512]
[1770658986058,10.51997765,2125.5,2124.3,11.22368386]
[1770658986355,30.438,2125.4,2124.3,11.22368386]
[1770658986552,38.03245361,2125.4,2124.3,10.98814386]
[1770658986757,30.44177923,2125.4,2124.3,10.98814386]
[1770658987350,7.59445361,2125.3,2124.3,10.98814386]
[1770658987954,30.44177923,2125.4,2124.3,10.98814386]
[1770658988355,40.8,2126.2,2125.0,10.98814386]
[1770658988555,5.02644394,2126.1,2125.0,10.98814386]
[1770658988756,5.02644394,2126.1,2124.9,0.23546]
[1770658988757,5.02644394,2125.4,2124.2,10.98814386]
[1770658988955,40.8,2125.4,2124.2,10.98814386]
[1770658989253,35.46544394,2125.6,2124.2,11.22369386]
[1770658989462,5.02644394,2125.5,2124.2,11.2280469]
[1770658989655,5.02644394,2125.3,2124.2,11.2280469]
[1770658990457,5.02644394,2125.3,2124.2,0.00435304]
[1770658990660,40.8,2125.4,2124.2,0.00435304]
[1770658990661,5.08165804,2125.0,2124.2,10.9924969]
[1770658990858,2.73070826,2125.0,2124.2,10.9924969]
[1770658991153,43.53070826,2125.4,2124.2,10.9924969]
[1770658991364,2.73070826,2125.3,2124.2,10.9924969]
[1770658992760,2.75332664,2125.1,2124.2,0.00435304]
[1770658992965,43.55332664,2125.4,2124.2,10.9924969]
[1770658993461,2.75332664,2125.3,2124.2,10.9924969]
[1770658993656,2.78969785,2125.2,2124.2,10.9924969]
[1770658993851,33.22869785,2125.5,2124.2,10.9924969]
[1770658994054,2.78969785,2125.4,2124.2,10.9924969]
[1770658994259,2.78969785,2125.2,2124.2,10.9924969]
[1770658994458,2.78969785,2125.2,2124.2,0.00435304]
[1770658995061,2.78534481,2124.3,2123.2,10.98814386]
[1770658995262,30.441,2124.2,2123.2,10.98814386]
[1770658996056,30.441,2124.2,2123.2,10.99183322]
[1770658996361,2.74170061,2124.1,2123.2,10.99183322]
[1770658996557,0.00563044,2124.1,2123.2,10.99183322]
[1770658996762,0.00563044,2124.1,2123.4,11.28291317]
[1770658997070,28.09205022,2124.7,2123.4,11.28291317]
[1770658997561,30.83375083,2124.7,2123.4,11.28291317]
[1770658997763,2.56255525,2124.6,2123.4,11.28291317]
[1770658997960,2.56657437,2124.6,2123.4,11.28291317]
[1770658998261,2.56255525,2124.4,2123.2,11.28660253]
[1770658998465,2.56255525,2124.3,2123.2,11.28660253]
[1770658998665,2.56657437,2124.6,2123.2,11.28660253]
[1770658998961,30.446,2124.5,2123.2,11.28660253]
[1770658999161,2.56596541,2124.4,2123.4,10.94353361]
[1770659000056,0.21501563,2124.4,2123.4,10.94353361]
[1770659001060,30.446,2124.5,2123.4,10.94353361]
[1770659001466,0.23298614,2124.3,2123.2,0.23934936]
[1770659001663,0.22929678,2124.0,2122.7,11.53018044]
[1770659001961,0.23385953,2124.3,2122.9,11.52974374]
[1770659002163,40.8,2124.2,2122.9,11.52974374]
[1770659002364,0.23385953,2124.1,2122.9,11.52974374]
[1770659002560,40.8,2124.2,2123.1,11.52974374]
[1770659002765,0.23787865,2124.6,2123.5,11.52974374]
[1770659002961,0.80843379,2124.1,2123.0,11.52974374]
[1770659003164,40.8,2124.0,2123.1,0.23567]
[1770659003366,40.8,2124.0,2123.2,11.64667351]
[1770659004267,30.61272361,2123.9,2123.2,11.64667351]
[1770659004468,30.451,2123.9,2123.2,11.64667351]
[1770659005968,0.07597799,2123.8,2122.9,11.61249334]
[1770659006169,28.17602821,2123.9,2122.9,11.61249334]
[1770659006368,0.23559,2123.8,2122.9,0.00380883]
[1770659006867,2.92552404,2123.5,2122.4,11.64667351]
[1770659007069,0.23564,2123.4,2122.1,11.64667351]
[1770659007572,2.92552404,2122.7,2121.6,10.94353361]
[1770659007766,30.455,2122.6,2121.6,10.94353361]
[1770659008064,41.80863231,2122.6,2121.6,10.94935977]
[1770659008268,0.00412938,2122.6,2121.7,11.17935361]
[1770659008457,42.04289096,2123.6,2121.7,11.17935361]
[1770659008458,30.455,2123.2,2121.7,11.17935361]
[1770659008661,40.8,2123.1,2121.7,11.17935361]
[1770659008859,11.34950293,2123.0,2121.7,11.17935361]
[1770659009062,30.457,2122.9,2121.7,11.17935361]
[1770659009468,30.46258481,2122.9,2121.7,11.17935361]
[1770659010664,0.00558481,2122.9,2121.7,11.17935361]
[1770659010862,14.27502697,2122.8,2121.7,10.94353361]
[1770659011066,40.8,2122.7,2121.7,10.94353361]
[1770659011466,11.34950293,2122.6,2121.7,10.94353361]
[1770659011665,40.8,2122.7,2121.7,10.94353361]
[1770659012166,10.85368524,2123.4,2121.9,10.94353361]
[1770659012469,49.30832027,2123.3,2121.9,10.94353361]
[1770659012866,8.50832027,2123.2,2121.9,10.94353361]
[1770659013371,8.51380025,2123.2,2121.9,10.94353361]
[1770659014369,38.98089849,2123.1,2121.9,10.94353361]
[1770659014661,8.51689849,2123.0,2121.9,10.94353361]
[1770659015267,6.16594871,2123.0,2121.9,10.94353361]
[1770659016569,0.00547998,2123.2,2122.1,10.94353361]
[1770659016873,36.75618047,2123.2,2122.1,10.94353361]
[1770659017070,30.47347998,2123.2,2122.1,10.94353361]
[1770659017370,36.75618047,2123.2,2122.1,10.94353361]
[1770659017568,0.00547998,2123.2,2122.5,10.94353361]
[1770659017971,0.00547998,2123.2,2122.7,10.94353361]
[1770659018170,36.75170049,2123.8,2122.7,10.94353361]
[1770659019165,47.12410297,2123.7,2122.7,10.94353361]
[1770659019772,6.32410297,2123.7,2122.7,10.94353361]
[1770659019973,30.469,2123.7,2122.7,10.94353361]
[1770659020174,40.80526476,2123.8,2122.7,10.94353361]
[1770659020471,4.76e-06,2123.8,2123.5,10.94353361]
[1770659020867,5.82461458,2124.4,2123.5,10.94353361]
[1770659021272,3.4736648,2124.4,2123.5,10.94353361]
[1770659021473,30.469,2124.6,2123.5,10.94353361]
[1770659021873,3.58502201,2124.5,2123.5,10.94907625]
[1770659022373,30.47375368,2124.6,2123.5,10.94907625]
[1770659023173,0.00475368,2124.6,2123.5,10.94907625]
[1770659024172,3.61673025,2124.6,2123.5,10.94907625]
[1770659024377,1.26578047,2124.6,2123.5,10.94907625]
[1770659025174,42.06578047,2124.9,2123.5,10.94907625]
[1770659025370,1.26578047,2124.8,2123.5,10.94907625]
[1770659026877,40.8042074,2124.9,2123.5,10.94907625]
[1770659027081,1.24212201,2124.8,2123.5,10.94907625]
[1770659027273,0.0042074,2124.9,2123.5,10.94907625]
[1770659027675,0.0042074,2124.9,2123.7,11.65081361]
[1770659027880,0.0042074,2124.9,2123.9,11.65081361]
[1770659028075,0.0042074,2124.9,2124.1,11.65081361]
[1770659028678,40.8,2125.3,2124.3,11.65081361]
[1770659028877,30.461,2125.6,2124.3,11.65081361]
[1770659029173,41.80727096,2126.3,2124.5,11.65081361]
[1770659029378,71.261,2126.2,2124.5,11.65081361]
[1770659029676,71.261,2126.2,2124.5,11.90493461]
[1770659029677,71.26632478,2126.2,2124.5,11.90493461]
[1770659029875,71.26632478,2126.2,2124.7,11.65081361]
[1770659029876,40.80532478,2126.2,2124.7,11.65081361]
[1770659030271,40.80532478,2126.2,2124.9,11.65081361]
[1770659030471,41.80727096,2127.4,2125.6,11.65081361]
[1770659030675,30.459,2127.3,2125.6,11.65081361]
[1770659031475,40.8,2127.2,2125.6,11.65681409]
[1770659033383,0.00349678,2127.3,2125.6,11.65681409]
[1770659034382,40.8,2127.2,2125.6,11.65681409]
[1770659035084,71.245,2127.2,2125.8,11.65081361]
[1770659036585,30.445,2127.2,2125.8,11.65081361]
[1770659037485,40.8,2127.1,2125.8,11.65081361]
[1770659038184,40.8,2127.1,2126.0,11.65081361]
[1770659038682,0.00349678,2127.3,2126.2,11.65081361]
[1770659038873,0.00349678,2127.3,2126.4,11.65081361]
[1770659039678,14.297547,2127.8,2126.4,11.65081361]
[1770659039876,40.8,2127.7,2126.4,11.65081361]
[1770659040477,40.80449953,2127.7,2126.4,11.65081361]
[1770659041980,40.80449953,2127.7,2126.6,11.65081361]
[1770659042380,0.00449953,2127.7,2126.8,11.65081361]
[1770659042579,11.95109675,2127.8,2126.8,11.65081361]
[1770659042779,40.8,2127.7,2126.8,11.65081361]
[1770659043382,0.23505,2128.7,2126.8,11.65081361]
[1770659043575,0.23511,2128.2,2126.8,11.65081361]
[1770659043776,6.0197,2127.9,2126.2,11.65081361]
[1770659043976,0.23519,2127.5,2126.2,11.65081361]
[1770659044183,30.427,2127.4,2126.2,11.65081361]
[1770659045588,28.07605022,2127.4,2126.2,11.65081361]
[1770659045781,0.07301586,2127.3,2126.2,11.65081361]
[1770659048082,0.07301586,2127.3,2125.7,11.59226969]
[1770659048286,0.11708784,2127.0,2125.7,11.59226969]
[1770659048488,0.11708784,2126.9,2125.7,11.59226969]
[1770659048789,0.93670422,2127.1,2125.7,11.59226969]
[1770659049384,40.8,2127.0,2125.7,11.59226969]
[1770659049592,41.80727096,2127.8,2125.7,11.59226969]
[1770659049593,2.93292535,2127.6,2125.7,11.59226969]
[1770659049786,5.78326,2128.4,2125.6,0.00600048]
[1770659049787,41.5893588,2132.8,2131.7,5.77419]
[1770659049982,1.36e-06,2133.3,2132.7,5.77147]
[1770659050181,10.19006145,2135.6,2133.6,5.76887]
[1770659050381,8.33999678,2135.0,2134.2,3.96299844]
[1770659050584,0.00349145,2135.5,2134.8,3.96299844]
[1770659050788,0.00419324,2135.5,2135.4,3.96299844]
[1770659050988,0.00349145,2136.8,2135.7,3.76099465]
[1770659051192,10.53983133,2137.4,2136.0,3.76099465]
[1770659051390,10.53983133,2136.8,2135.6,6.39339267]
[1770659051592,0.00349145,2136.7,2135.7,13.42451061]
[1770659051887,5.75621,2138.4,2136.6,6.79995615]
[1770659052088,75.53510175,2137.8,2137.2,6.79995615]
[1770659052290,10.53983133,2137.5,2135.6,2.63239802]
[1770659052488,10.53983133,2137.0,2135.2,2.63239802]
[1770659052692,10.53983133,2137.0,2135.3,7.02660685]
[1770659052892,10.53983133,2136.8,2135.2,6.79995615]
[1770659053189,10.53983133,2136.8,2135.2,0.00503905]
[1770659053190,16.30173133,2136.3,2135.2,0.00503905]
[1770659053397,10.53983133,2136.2,2135.2,1e-08]
[1770659053593,10.53983133,2135.9,2134.4,6.79995615]
[1770659054094,10.64531025,2135.8,2134.4,6.79995615]
[1770659054296,10.53983133,2135.8,2134.4,6.79995615]
[1770659054486,10.53983133,2135.6,2134.4,0.00566746]
[1770659054794,8.18589319,2135.5,2134.4,0.00566746]
[1770659055293,0.10547892,2135.4,2134.4,8.95517765]
[1770659055591,10.45438883,2136.1,2134.5,8.94951019]
[1770659055988,10.45438883,2137.0,2135.8,6.40420588]
[1770659056185,10.45438883,2137.3,2136.2,6.40420588]
[1770659056384,10.45438883,2137.3,2136.2,6.40912893]
[1770659056586,75.64009589,2136.8,2136.2,0.00492305]
[1770659056781,75.64009589,2136.8,2134.4,6.40420588]
[1770659056782,10.45438883,2136.7,2134.4,6.40420588]
[1770659056985,10.55482871,2136.7,2134.5,6.40420588]
[1770659057182,10.45438883,2136.1,2134.5,6.40420588]
[1770659057381,10.45438883,2135.7,2133.5,6.40420588]
[1770659057583,10.45438883,2135.7,2133.6,6.40420588]
[1770659057785,5.9957,2136.4,2133.8,5.68067424]
[1770659057786,8.10045069,2135.5,2133.8,5.68067424]
[1770659058191,10.55482871,2135.4,2133.8,5.68067424]
[1770659058393,5.76012,2137.0,2134.4,8.03461238]
[1770659058394,10.45438883,2136.1,2134.4,8.03461238]
[1770659058793,10.45438883,2135.9,2134.4,8.03461238]
[1770659059294,0.10043988,2135.8,2134.4,8.03461238]
[1770659059492,10.96200567,2135.8,2134.4,8.03461238]
[1770659059891,10.86156579,2135.7,2134.4,8.03461238]
[1770659060291,0.10043988,2135.6,2134.4,8.03461238]
[1770659060493,10.86156579,2135.9,2134.4,8.03461238]
[1770659060696,10.86156579,2135.7,2134.0,7.99907965]
[1770659060994,8.50762765,2135.7,2134.0,7.99907965]
[1770659061192,10.86156579,2135.5,2134.0,7.99907965]
[1770659061395,0.10043988,2135.6,2133.6,0.00496519]
[1770659061396,10.86156579,2135.1,2133.6,0.00496519]
[1770659061596,10.86762749,2135.1,2133.6,10.35798298]
[1770659061888,10.86156579,2134.9,2133.6,10.35798298]
[1770659062290,10.86156579,2134.7,2133.6,0.00496519]
[1770659062689,0.10043988,2134.6,2133.6,10.12674716]
[1770659063391,0.0060617,2135.1,2133.8,10.12178197]
[1770659063589,0.10043988,2135.0,2133.8,10.12178197]
[1770659063789,8.61412923,2135.1,2133.8,10.12178197]
[1770659064195,5.76126,2136.5,2133.8,10.12178197]
[1770659064196,10.86156579,2136.2,2133.8,10.12178197]
[1770659064397,10.86156579,2136.0,2133.8,10.12178197]
[1770659064798,10.86156579,2135.5,2133.8,10.12178197]
[1770659064997,10.86156579,2134.8,2133.6,0.00496519]
[1770659065795,10.86156579,2134.8,2133.6,10.70606504]
[1770659066199,10.86156579,2135.9,2133.6,10.70606504]
[1770659066392,8.33999678,2134.3,2133.6,10.70606504]
[1770659066592,10.86156579,2134.8,2133.6,10.70606504]
[1770659066991,8.50762765,2134.8,2133.6,10.70606504]
[1770659067696,8.51126345,2134.8,2133.6,10.70606504]
[1770659067894,0.0036358,2134.8,2133.6,10.70606504]
[1770659069690,0.0036358,2134.8,2133.8,5.76851]
[1770659069896,10.86156579,2135.6,2133.9,10.70109985]
[1770659069897,8.50762765,2135.6,2133.9,10.70109985]
[1770659070096,10.86156579,2135.3,2133.9,10.70109985]
[1770659070695,10.86156579,2135.2,2133.9,10.70109985]
[1770659071095,10.86156579,2134.8,2133.9,10.70109985]
[1770659071692,10.86156579,2134.3,2133.6,0.00496519]
[1770659071887,10.86156579,2134.3,2133.0,10.70109985]
[1770659072089,10.86156579,2133.7,2132.4,13.24758294]
[1770659072298,10.86156579,2133.7,2132.4,10.70109985]
[1770659072595,75.53510175,2133.6,2132.4,10.70109985]
[1770659072896,8.50762765,2133.5,2132.4,10.70512399]
[1770659073289,10.86156579,2133.4,2132.4,0.00402414]
[1770659073498,10.86156579,2133.4,2132.4,10.70512399]